Cogmind - Beta 13 @@@ ROGUE MODE // 2024.04.07 @ 20:34:11 Player: Struisvogel Result: Smashed by cave-in Performance ------------- Evolutions (0) 0 Regions Visited (1) 200 Robots Destroyed (16) 80 Value Destroyed (438) 438 Prototype IDs (1) 20 Alien Tech Used (0) 0 Bonus (0) 0 TOTAL SCORE: 738 Bonus ------- None Cogmind --------- Core Integrity 0/250 Matter 143/300 Energy 280/280 System Corruption 3% Temperature Cool (0) Movement Treading (240) Ox1 Location -10/Materials Parts ------- > --- POWER (1) -------- Cooled Ion Engine > --- PROPULSION (2) --- Light Treads > --- UTILITY (2) ------ Large Storage Unit Tractor Beam > --- WEAPON (2) ------- Grenade Launcher > --- INVENTORY (15) --- Light Ion Engine Light Ion Engine Light Nuclear Core Small Storage Unit Medium Storage Unit Small Laser Grenade Launcher Peak State ------------ > --- POWER ------------ Cooled Ion Engine > --- PROPULSION ------- Light Treads Light Treads > --- UTILITY ---------- Small Storage Unit > --- WEAPON ----------- Small Laser Assault Rifle > --- INVENTORY -------- Light Ion Engine Light Ion Engine [Rating: 8] Favorites ----------- Power Cooled Ion Engine Engine Cooled Ion Engine Propulsion Light Treads Treads Light Treads Utility Small Storage Unit Device Tractor Beam Storage Small Storage Unit Weapon Grenade Launcher Energy Gun Small Laser Ballistic Gun Assault Rifle Launcher Grenade Launcher Build | -11 -10 ------- Run | Yrd Mat Slots Evolved . | . . Power . | . . Propulsion . | . . Utility . | . . Weapon . | . . Parts Attached 12 | 6 6 Power 2 | 1 1 Engine 2 | 1 1 Core . | . . Reactor . | . . Propulsion 2 | 2 . Treads 2 | 2 . Leg . | . . Wheel . | . . Hover . | . . Flight . | . . Utility 4 | 1 3 Device 1 | . 1 Storage 3 | 1 2 Processor . | . . Hackware . | . . Protection . | . . Artifact . | . . Weapon 4 | 2 2 Energy Gun 1 | 1 . Energy Cannon . | . . Ballistic Gun 1 | 1 . Ballistic Cannon . | . . Launcher 2 | . 2 Special Weapon . | . . Impact Weapon . | . . Slashing Weapon . | . . Piercing Weapon . | . . Special Melee Weapon . | . . Unidentified Prototypes 1 | . 1 Parts Lost 2 | . 2 Power . | . . Propulsion 1 | . 1 Utility . | . . Weapon 1 | . 1 Highest Loss Streak 1 | . 1 To Critical Strikes . | . . Average Slot Usage (%) 76 | . 76 Engine 14 | . 14 Treads 18 | . 18 Device 8 | . 8 Storage 14 | . 14 Energy Gun 3 | . 3 Ballistic Gun 3 | . 3 Launcher 13 | . 13 Naked Turns . | . . Heaviest Build 35 | 11 35 Greatest Support 40 | 40 40 Greatest Overweight (x) 2 | 2 1 Average Overweight (x) . | . . Largest Inventory Capacity 15 | 8 15 Average Capacity 9 | 7 9 Most Carried 7 | 1 7 Average Carried 4 | . 4 Final Capacity 15 | 8 15 Final Carried 7 | 1 7 Class Distribution -------------------- 100% | Mutant Dominant Class ---------------- Mutant | -10/Materials Resources | -11 -10 ----------- Run | Yrd Mat Matter Collected 417 | 176 241 Remotely 64 | . 64 Salvage Created 394 | . 394 Parts 27 | . 27 Haulers Intercepted 1 | . 1 Recyclers Shooed . | . . Parts Field Recycled . | . . Retrieved Matter . | . . Parts Self-Destructed . | . . Prevented . | . . Kills | -11 -10 ------- Run | Yrd Mat Combat Hostiles Destroyed 10 | . 10 Guns 2 | . 2 AOE 8 | . 8 Classes Destroyed 5 | . 5 Worker 2 | . 2 Hauler 1 | . 1 Mechanic 1 | . 1 Watcher 2 | . 2 Grunt 10 | . 10 Best Kill Streak 5 | . 5 Combat Bots Only 4 | . 4 Max Kills in Single Turn 4 | . 4 Gunslinging . | . . Exploded 3 | . 3 Melee . | . . Uniques/NPCs Destroyed . | . . Combat | -11 -10 -------- Run | Yrd Mat Hostile Shots Fired 58 | . 58 Missed 16 | . 16 Damage Taken 1000 | . 1000 Core 283 | . 283 Absorbed by Shields . | . . Core Remaining (%) 100 | 100 . Volleys Fired 31 | . 31 Largest 2 | . 2 Hottest 60 | . 60 Shots Fired 52 | . 52 Gun 31 | . 31 Cannon . | . . Launcher 21 | . 21 Special . | . . Kinetic 16 | . 16 Thermal 15 | . 15 Explosive 21 | . 21 Electromagnetic . | . . Robot Hit Streak 6 | . 6 Robot Miss Streak 2 | . 2 Penetration Max . | . . Secondary Targets 1 | . 1 Max Gunslinging Chain 1 | . 1 Shots Hit Robots 31 | . 31 Core Hits 28 | . 28 Critical Kills . | . . Critical Parts Destroyed . | . . Critical Strikes . | . . Melee Attacks . | . . Impact . | . . Slashing . | . . Piercing . | . . Sneak Attacks . | . . Combat Hostiles . | . . Follow-up Attacks . | . . Damage Inflicted 1225 | . 1225 Guns 272 | . 272 Cannons . | . . Explosions 953 | . 953 Melee . | . . Ramming . | . . Kinetic 154 | . 154 Thermal 118 | . 118 Explosive 953 | . 953 Electromagnetic . | . . Impact . | . . Slashing . | . . Piercing . | . . Highest Corruption 3 | . 3 Average Corruption 3 | . 3 Corruption Purged . | . . Corruption Blocked . | . . Effects 12 | . 12 Message Errors 5 | . 5 Matter Fused 1 | . 1 Heat Flow Errors 1 | . 1 Energy Discharges 1 | . 1 Data Loss (minor) 3 | . 3 Data Loss (major) 1 | . 1 Overload Shots . | . . Overflow Damage 25 | . 25 Projectiles . | . . Explosions 25 | . 25 Melee . | . . Knockbacks . | . . Impact . | . . Kinetic . | . . Secondary . | . . Self-Inflicted Damage 104 | . 104 Shots 4 | . 4 Rammed . | . . Targets Rammed . | . . Kicked . | . . Crushed . | . . Highest Temperature 94 | . 94 Average Temperature 41 | . 41 Received Heat Transfer 345 | . 345 Siege Activations . | . . Robots Corrupted . | . . Combat Hostiles . | . . Parts Fried . | . . Impact Corruptions . | . . Robots Melted . | . . Combat Hostiles . | . . Parts Melted . | . . Heat Transferred 275 | . 275 Parts Sabotaged . | . . Parts Stolen . | . . Parts Stripped . | . . Power Chain Reactions . | . . Alert | -11 -10 ------- Run | Yrd Mat Peak Influence 263 | . 263 Initial . | . . Average 114 | . 125 Maximum Alert Level 1 | . 1 Low Security (%) 79 | 100 76 Level 1 20 | . 23 Level 2 . | . . Level 3 . | . . Level 4 . | . . Level 5 . | . . High Security . | . . Max Security . | . . Squads Dispatched 2 | . 2 Investigation 1 | . 1 Extermination . | . . Reinforcement 1 | . 1 Assault . | . . Garrison . | . . Intercept . | . . Searches Triggered . | . . Construction Impeded . | . . Haulers Reinforced . | . . Active Scanning Responses . | . . Cargo Convoy Interrupts . | . . Stealth | -11 -10 --------- Run | Yrd Mat Distress Signals . | . . Communications Jammed . | . . Distress Signals . | . . Times Spotted 16 | . 16 Peak Tracking Total 5 | . 5 Tactical Retreats . | . . Traps | -11 -10 ------- Run | Yrd Mat Traps Triggered 2 | . 2 Indirectly . | . . Trap Hack Attempts . | . . Triggered . | . . Disarmed . | . . Reprogrammed . | . . Reused . | . . Traps Extracted . | . . Installed . | . . Triggered . | . . Machines | -11 -10 ---------- Run | Yrd Mat Machines Disabled 1 | . 1 Max in Single Turn 1 | . 1 Machines Repaired . | . . Machines Dismantled . | . . Machines Sabotaged . | . . Overloaded Fab Kills . | . . Hacking | -11 -10 --------- Run | Yrd Mat Machines Accessed . | . . Terminals . | . . Fabricators . | . . Repair Stations . | . . Recycling Units . | . . Scanalyzers . | . . Garrison Access . | . . Total Hacks . | . . Successful . | . . Failed . | . . Catastrophic . | . . Database Lockouts . | . . Manual . | . . Terminals . | . . Fabricators . | . . Repair Stations . | . . Recycling Units . | . . Scanalyzers . | . . Garrison Access . | . . Terminal Hacks . | . . Fabricator Hacks . | . . Repair Station Hacks . | . . Recycling Unit Hacks . | . . Scanalyzer . | . . Garrison Access Hacks . | . . Unauthorized Hacks . | . . Terminals . | . . Fabricators . | . . Repair Stations . | . . Recycling Units . | . . Scanalyzers . | . . Garrison Access . | . . Data Cores Recovered . | . . Used . | . . Hacking Detections . | . . Full Trace Events . | . . Feedback Events . | . . Feedback Blocked . | . . Robot Schematics Acquired . | . . Robots Built . | . . Authchips . | . . Time . | . . Total Robot Build Rating . | . . Part Schematics Acquired . | . . Parts Built . | . . Authchips . | . . Time . | . . Total Part Build Rating . | . . Parts Repaired . | . . Time . | . . Parts Recycled . | . . Recycled Matter . | . . Retrieved Matter . | . . Retrieved Components . | . . Parts Scanalyzed . | . . Part Schematics Acquired . | . . Parts Damaged . | . . Bothacking | -11 -10 ------------ Run | Yrd Mat Used RIF Installer . | . . Robots Hacked . | . . Non-combat . | . . Combat . | . . Robot Hacks Applied . | . . Relay Couplers Released . | . . Fabnet Peak Effective % . | . . Robots Rewired . | . . Allies Hacked . | . . Hacks Repelled . | . . Allies | -11 -10 -------- Run | Yrd Mat Total Allies . | . . Largest Group . | . . Highest-Rated Group . | . . Highest-Rated Ally . | . . Total Orders . | . . Ally Attacks . | . . Total Damage . | . . Kills . | . . Allies Corrupted . | . . Allies Melted . | . . Intel | -11 -10 ------- Run | Yrd Mat Robot Analysis Total . | . . Derelict Logs Recovered . | . . Drone Launches . | . . Drone Recoveries . | . . Exploration | -11 -10 ------------- Run | Yrd Mat Turns Passed 1079 | 98 981 Spaces Moved 542 | 58 484 Core 7 | 7 . Treads 535 | 51 484 Legs . | . . Wheels . | . . Hover . | . . Flight . | . . Fastest Speed 50 | 50 160 Average Speed 179 | 153 182 Slowest Speed 240 | 160 240 Overloaded Moves . | . . Propulsion Burnouts . | . . Robots Hopped . | . . Cave-ins Triggered 2 | . 2 Exploration Rate (%) 42 | 4 81 Regions Visited 1 Branch Regions . Pre-discovered Areas . | . . Known Exits Taken . | . . Unknown Exits Taken 1 | 1 . Scrap Searched . | . . Spaces Dug . | . . Terrain Destroyed 112 | . 112 Melee . | . . Projectile . | . . AOE 112 | . 112 Terrain Rammed . | . . Walls Destroyed . | . . Machines Disabled . | . . Actions | -11 -10 --------- Run | Yrd Mat Total 591 | 64 527 Wait . | . . Move 541 | 57 484 Hop . | . . Pick Up 7 | 1 6 Fast Attach 6 | 6 . Attach 2 | . 2 Detach . | . . Swap 4 | . 4 Drop . | . . Fire 31 | . 31 Melee . | . . Ram . | . . Kick . | . . Crush . | . . Escape Stasis . | . . Rewire . | . . Trap . | . . Miscellaneous . | . . Route ------- -11/Scrapyard -10/Materials (discovered 5 exits: [*Mat x3] / [*Min x2]) History --------- Turn | Location | Event 15 | -11/Scrapyard | Discovered new exit (range 15) 99 | -11/Scrapyard | Entered Materials 217 | -10/Materials | Discovered new exit (range 7) 266 | -10/Materials | Discovered new exit (range 15) 304 | -10/Materials | Build established: Mutant 401 | -10/Materials | Crushed by falling debris 401 | -10/Materials | Core integrity fell below 50% 456 | -10/Materials | Discovered new exit (range 7) 507 | -10/Materials | Core integrity fell below 20% 539 | -10/Materials | Discovered new exit (range 10) 888 | -10/Materials | Discovered new exit (range 13) 1081 | -10/Materials | Crushed by falling debris 1081 | -10/Materials | Smashed by cave-in Last Messages --------------- 2|E2PVGYN4N:99ST8=ZWWUGK#T:LKV Triggered Blade Trap. Massive razor-sharp blades shoot up from within the floor. Grenade Launcher severed. FALDE:TJUPESTR2O5LS%PN|TQN K-01 Serf collects debris. System corrupted: Matter fused (-6). R-06 Scavenger collects Signal Interpreter. R-06 Scavenger collects Hover Unit. R-06 Scavenger collects Lgt. Ion Engine. U-05 Engineer lays Concrete. U-05 Engineer builds a Wall. U-05 Engineer lays Concrete. U-05 Engineer builds a Wall. U-05 Engineer lays Concrete. U-05 Engineer builds a Wall. U-05 Engineer lays Concrete. The unstable cave ceiling collapses. Crushed by falling debris. Map ----- +----------------------------------------------------+ | ???#?????????????????????????????????????????????? | | ??? ?????????????????????????????????????????????? | | ??? ????????????????????????????????????????????? | | ### "?????#??????????????????????????????????????? | | # ""??? #??????????????????????????????????????? | | # """? #????###########???????????????????????? | | # ! #????# """ """ #????????????#####??????? | | # """ ###### """ """ ##??????????##"""##?????? | | # """ ## # """ """ T#?????????##"!!!"##????? | | # """ ?# < # #??????????#"" ""#????? | | ### ???# # #??????????# #???## | | ## ######## + #??????????# < ????# | | = # #??????????# ????# | | = # #??????????? ?????# | | ! "" """" ################??????? ?????# | | """" """" [ #??# ! ######### #????## | | """" """" #??# # # #????# | | #??# """ """ # + #????# | | #??# """ """ #?? # ###### | | "T" #??# """ """ ###### # # | | ####"Y"############# ## # | | ???#"""## # # # # ######## | | ???###### # r u | | ????????# !]] + k | | ????????# !] # u ### | | ????????# ] #######@ ### # ####?? | | ????????# # #?### ###????? | | ????????# # ##### # ######????? | | ????????# ## # # #**==!!#????? | | ????????#######+#### # """ # #* ==!!#????? | | ??????????????# #??# # """ # # #????? | | ??????????????# #??# # """ # #### #####? | | ??????????????# #??######### """ + #??# #? | | ??????????????# #??????????# """ # #??# #? | | ############### ##?????????# + #??# #? | | +?????????####### ##?# #####? | | #?????????????# #?# #####? | | #?????????????#! !#?# [[#? | | ############## +?????????????##!! !##?# [[#? | | T # #??????????????######### !!#? | | """ """ # #????????????????????#"" !!#? | | """ """ # ########?????????????#T **#? | | """ """ # #?????????????### **#? | | # #???????????????# #####? | | # #???????????????# #????? | | ### # #### #???????????????# #????? | | #???????????????# #????? | | ##########??????# #????? | | % # #??????# #????? | | # ############## =# """ #??????# #????? | +----------------------------------------------------+ Best States ------------- Heat Dissipation 25 Energy Generation 14 Energy Capacity 280 Matter Stores 300 Matter Capacity 300 Sight Range 16 Terrain Scan Density 10 Evasion (%) 40 Recoil Reduction 2 Item Schematics ----------------- None Robot Schematics ------------------ None Fabricated ------------ Nothing Alien Tech Used ----------------- None Achievements -------------- None Challenges ------------ None Game ------ Seed RefineryRestorationRipper Manual? 0 Play Time 00:07:53 Cumulative 2.6 hours Start 2024.04.07 @ 20:28:16 End 2024.04.07 @ 20:34:11 Sessions 1 Manual Loads 0 Difficulty Rogue Special Mode None Game No. 8 Rogue 8 Adventurer 0 Explorer 0 Win Type - Total 0 Types 0/0/0/0/0/0/0/0/0 Lore% 2 Gallery% 8 Achievement% 10 Wizard Run 0 Options --------- Layout 1 ASCII 0 Keyboard 0 Movement Mouse Keybinds 0 Fullscreen 1 Font 24/Smallcaps Map View 50x35 Zoom Use 0% Tactical HUD 0 Map Filters NONE Filters NONE Steam 1 RUN: 31591612-3587-4b10-8c5c-c0826e4cc6cb